bitfinex-derivatives/quotes_BTCF0:USTF0_20250718
["timestamp","ask_amount","ask_price","bid_price","bid_amount"]
[1752838473356,0.63957564,119000.0,118990.0,0.08868766]
[1752838473551,0.63957564,119000.0,118990.0,0.06601188]
[1752838474455,0.63957564,119000.0,118990.0,0.06701188]
[1752838475847,0.63957564,119000.0,118990.0,0.06801188]
[1752838477154,0.63957564,119000.0,118990.0,0.04389188]
[1752838477359,0.63957564,119000.0,118990.0,0.01932188]
[1752838478759,0.63957564,119000.0,118990.0,0.04389188]
[1752838479151,0.63957564,119000.0,118990.0,0.06801188]
[1752838479360,0.63957564,119000.0,118990.0,0.10912188]
[1752838479361,0.2581283,119000.0,118990.0,0.10912188]
[1752838479559,0.63957564,119000.0,118990.0,0.27711428]
[1752838480662,0.1871683,119000.0,118990.0,0.65856162]
[1752838480859,0.1679783,119000.0,118990.0,0.65856162]
[1752838482262,0.63957564,119000.0,118990.0,0.10912188]
[1752838482464,0.63957564,119000.0,118990.0,0.69828188]
[1752838484366,0.2581283,119000.0,118990.0,0.69828188]
[1752838484670,0.63957564,119000.0,118990.0,0.69828188]
[1752838485364,0.2581283,119000.0,118990.0,0.69828188]
[1752838485564,0.63957564,119000.0,118990.0,0.69828188]
[1752838493673,0.2581283,119000.0,118990.0,0.69828188]
[1752838493874,0.63957564,119000.0,118990.0,0.69828188]
[1752838495581,0.2581283,119000.0,118990.0,0.69828188]
[1752838495874,0.63957564,119000.0,118990.0,0.69828188]
[1752838498978,0.63957564,119000.0,118990.0,0.86627418]
[1752838499571,0.2102983,119000.0,118990.0,0.86627418]
[1752838499778,0.1679783,119000.0,118990.0,1.24772152]
[1752838500076,0.1679783,119000.0,118990.0,1.2703973]
[1752838502978,0.1679783,119000.0,118990.0,1.102405]
[1752838503480,0.1679783,119000.0,118990.0,1.2703973]
[1752838505484,0.1679783,119000.0,118990.0,1.25307542]
[1752838510090,0.1679783,119000.0,118990.0,0.87162808]
[1752838510291,0.1679783,119000.0,118990.0,1.25307542]
[1752838512687,0.1679783,119000.0,118990.0,0.87162808]
[1752838513093,0.1679783,119000.0,118990.0,1.25307542]
[1752838526397,0.1679783,119000.0,118990.0,1.28331463]
[1752838528199,0.1679783,119000.0,118990.0,1.26064119]
[1752838528994,0.293956,119010.0,119000.0,0.2022383]
[1752838529297,0.293956,119010.0,119000.0,0.66062725]
[1752838530194,0.228797,119020.0,119010.0,0.2564841]
[1752838530394,0.209947,119020.0,119010.0,1.24741305]
[1752838531395,0.24258366,119040.0,119020.0,0.02314]
[1752838531695,0.228758,119040.0,119030.0,1.22466324]
[1752838532001,0.228758,119040.0,119030.0,1.24734485]
[1752838532802,0.210908,119040.0,119030.0,1.24734485]
[1752838533198,0.1689269,119040.0,119030.0,1.24734485]
[1752838534404,0.1689269,119040.0,119030.0,1.22466324]
[1752838536708,0.1689269,119040.0,119030.0,0.08852]
[1752838536900,0.2031269,119040.0,119030.0,0.67512]
[1752838537302,0.2031269,119040.0,119030.0,0.8430559]
[1752838539106,0.1877769,119040.0,119030.0,1.22450324]
[1752838539602,0.1689269,119040.0,119030.0,1.22450324]
[1752838539902,0.1689269,119040.0,119030.0,0.8430559]
[1752838540099,0.1689269,119040.0,119030.0,1.22450324]
[1752838540798,0.001,119040.0,119030.0,1.22450324]
[1752838541002,0.1689218,119040.0,119030.0,1.22450324]
[1752838542806,0.001,119040.0,119030.0,1.22450324]
[1752838543507,0.001,119040.0,119030.0,1.22550324]
[1752838543707,0.1689218,119040.0,119030.0,1.22550324]
[1752838543901,0.1679218,119040.0,119030.0,1.22650324]
[1752838545506,0.2938568,119050.0,119040.0,0.1679218]
[1752838545712,0.2938568,119050.0,119040.0,0.58362914]
[1752838545913,0.2938568,119050.0,119040.0,0.63788914]
[1752838546314,0.2098983,119050.0,119040.0,0.63788914]
[1752838546705,0.31288141,119060.0,119050.0,0.1679077]
[1752838547010,0.31288141,119060.0,119050.0,1.22427504]
[1752838547011,0.2098783,119060.0,119050.0,1.22427504]
[1752838547215,0.1227613,119070.0,119060.0,0.2021536]
[1752838547216,0.0922013,119070.0,119060.0,0.2021536]
[1752838547414,0.2600949,119070.0,119060.0,0.63786094]
[1752838548211,0.2789449,119070.0,119060.0,0.2564136]
[1752838548416,0.3009449,119070.0,119060.0,0.08852]
[1752838548817,0.3248549,119070.0,119060.0,0.08852]
[1752838549012,0.3492349,119070.0,119060.0,0.08852]
[1752838549208,0.3512349,119070.0,119060.0,0.08852]
[1752838551624,0.3429762,119070.0,119060.0,0.08852]
[1752838552227,0.3429762,119070.0,119060.0,0.2564136]
[1752838552626,0.3185962,119070.0,119060.0,0.2564136]
[1752838552825,0.2946862,119070.0,119060.0,0.2564136]
[1752838553128,0.2880362,119070.0,119060.0,0.63786094]
[1752838553324,0.2538362,119070.0,119060.0,0.63786094]
[1752838554233,0.211864,119070.0,119060.0,0.63786094]
[1752838554627,0.1698936,119070.0,119060.0,0.63786094]
[1752838555536,0.1698795,119070.0,119060.0,0.63786094]
[1752838556235,0.1688795,119070.0,119060.0,0.63786094]
[1752838557133,0.001,119070.0,119060.0,0.63786094]
[1752838557332,0.1688795,119070.0,119060.0,0.2564136]
[1752838557528,0.1688795,119070.0,119060.0,0.63786094]
[1752838558131,0.001,119070.0,119060.0,0.63786094]
[1752838558333,0.1688795,119070.0,119060.0,0.63786094]
[1752838559235,0.63797684,119070.0,119060.0,0.08852]
[1752838559637,0.63797684,119070.0,119060.0,0.67472]
[1752838559841,0.63797684,119070.0,119060.0,0.08132]
[1752838560041,0.63797684,119070.0,119060.0,0.63326]
[1752838560735,0.2565295,119070.0,119060.0,0.63326]
[1752838560934,0.2565295,119070.0,119060.0,0.67548]
[1752838561833,0.63797684,119070.0,119060.0,0.67548]
[1752838562738,0.64628595,119070.0,119060.0,0.67548]
[1752838563739,0.26483861,119070.0,119060.0,0.67548]
[1752838564142,0.64628595,119070.0,119060.0,0.67548]
[1752838564938,0.26483861,119070.0,119060.0,0.8433736]
[1752838565241,0.64628595,119070.0,119060.0,0.8433736]
[1752838565441,0.64628595,119070.0,119060.0,0.67548]
[1752838566137,0.64628595,119070.0,119060.0,0.8433736]
[1752838566337,0.26483861,119070.0,119060.0,0.8433736]
[1752838566538,0.26483861,119070.0,119060.0,0.67548]
[1752838566738,0.26483861,119070.0,119060.0,0.8433736]
[1752838567042,0.64628595,119070.0,119060.0,0.8433736]
[1752838568647,0.26483861,119070.0,119060.0,0.8433736]
[1752838569646,0.2565295,119070.0,119060.0,1.22482094]
[1752838570347,0.2565295,119070.0,119060.0,0.8433736]
[1752838571042,0.2565295,119070.0,119060.0,0.86605521]
[1752838571441,0.1724295,119070.0,119060.0,0.86605551]
[1752838571640,0.1688795,119070.0,119060.0,0.86605551]
[1752838571843,0.2027695,119070.0,119060.0,1.24750285]
[1752838572044,0.2093595,119070.0,119060.0,1.24750285]
[1752838572248,0.2321895,119070.0,119060.0,0.69816161]
[1752838572447,0.2565295,119070.0,119060.0,0.69816161]
[1752838573248,0.2565295,119070.0,119060.0,0.69811859]
[1752838573848,0.2565295,119070.0,119060.0,1.07956593]
[1752838574247,0.2565295,119070.0,119060.0,0.69811859]
[1752838574745,0.2565295,119070.0,119060.0,0.67548]
[1752838576642,0.2321895,119070.0,119060.0,0.67548]
[1752838577747,0.2565295,119070.0,119060.0,0.67548]
[1752838577944,0.2565295,119070.0,119060.0,0.8433738]
[1752838578744,0.001,119070.0,119060.0,1.24745973]
[1752838579445,0.001,119070.0,119060.0,1.22482114]
[1752838579847,0.001,119070.0,119060.0,1.24745973]
[1752838582345,0.04299,119070.0,119060.0,1.24745973]
[1752838584652,0.04299,119070.0,119060.0,1.25506269]
[1752838585148,0.2108698,119070.0,119060.0,0.87361535]
[1752838585654,0.2108698,119070.0,119060.0,1.25506269]
[1752838589353,0.2108698,119070.0,119060.0,0.87361535]
[1752838589654,0.2108698,119070.0,119060.0,1.25506269]
[1752838590757,0.04299,119070.0,119060.0,1.25506269]
[1752838591158,0.2108698,119070.0,119060.0,1.25506269]
[1752838591358,0.2108698,119070.0,119060.0,1.277695]
[1752838592154,0.04299,119070.0,119060.0,1.25506269]
[1752838592354,0.2108698,119070.0,119060.0,1.25506269]
[1752838592555,0.04299,119070.0,119060.0,1.25506269]
[1752838593055,0.2108697,119070.0,119060.0,1.25506269]
[1752838594158,0.04299,119070.0,119060.0,1.25506269]
[1752838599657,0.04299,119070.0,119060.0,1.3003134]
[1752838601162,0.04299,119070.0,119060.0,0.91886606]
[1752838601363,0.04299,119070.0,119060.0,1.3003134]
[1752838602471,0.04299,119070.0,119060.0,0.91886606]
[1752838602770,0.04299,119070.0,119060.0,1.3003134]
[1752838604068,0.2108697,119070.0,119060.0,1.3031134]
[1752838605268,0.2108697,119070.0,119060.0,1.27287185]
[1752838605569,0.2108697,119070.0,119060.0,1.30306464]
[1752838605867,0.04299,119070.0,119060.0,1.27287185]
[1752838606966,0.04299,119070.0,119060.0,0.68387185]
[1752838607166,0.04299,119070.0,119060.0,1.27271185]
[1752838607867,0.2108697,119070.0,119060.0,1.27271185]
[1752838608271,0.2108697,119070.0,119060.0,0.89126451]
[1752838608472,0.2108697,119070.0,119060.0,1.27271185]
[1752838609275,0.04299,119070.0,119060.0,1.27271185]
[1752838612775,0.11299,119070.0,119060.0,1.27271185]
[1752838615582,0.3000697,119070.0,119060.0,0.68387185]
[1752838615878,0.75068704,119070.0,119060.0,0.11280514]
[1752838616086,0.75068704,119070.0,119060.0,0.61898514]
[1752838616284,0.75068704,119070.0,119060.0,0.61142933]
[1752838616482,0.75068704,119070.0,119060.0,0.58876]
[1752838621592,0.91866304,119070.0,119060.0,0.58876]
[1752838621887,0.03515,119050.0,119040.0,0.09113202]
[1752838622087,0.63772524,119050.0,119040.0,0.77368402]
[1752838622291,0.63772524,119050.0,119040.0,0.60576202]
[1752838623692,0.63772524,119050.0,119040.0,0.65352202]
[1752838624394,0.2562779,119050.0,119040.0,0.82144402]
[1752838624592,0.63772524,119050.0,119040.0,0.86076402]
[1752838624794,0.63772524,119050.0,119040.0,0.69284202]
[1752838624993,0.63772524,119050.0,119040.0,0.69484202]
[1752838625700,0.63772524,119050.0,119040.0,0.69284202]
[1752838626198,0.70772524,119050.0,119040.0,0.69284202]
[1752838627301,0.77624371,119050.0,119040.0,0.69284202]
[1752838627492,0.77624371,119050.0,119040.0,0.67572]
[1752838627800,0.79495936,119050.0,119040.0,0.67572]
[1752838628898,0.8032521,119050.0,119040.0,0.67572]
[1752838630405,0.42180476,119050.0,119040.0,0.67572]
[1752838630604,0.42180476,119050.0,119040.0,0.67885]
[1752838630605,0.8032521,119050.0,119040.0,0.67885]
[1752838633002,0.8032521,119050.0,119040.0,0.65283]
[1752838633808,0.8032521,119050.0,119040.0,0.67885]
[1752838634706,0.79495936,119050.0,119040.0,0.67885]
[1752838635207,0.41351202,119050.0,119040.0,0.67885]
[1752838636103,0.79495936,119050.0,119040.0,0.67885]
[1752838636403,0.80329655,119050.0,119040.0,0.67885]
[1752838638704,0.79495936,119050.0,119040.0,0.67885]
[1752838639411,0.41351202,119050.0,119040.0,0.67885]
[1752838639612,0.8032194,119050.0,119040.0,0.67885]
[1752838640714,0.77624371,119050.0,119040.0,0.67885]
[1752838641321,0.39479637,119050.0,119040.0,0.67885]
[1752838642005,0.77624371,119050.0,119040.0,0.67885]
[1752838642209,0.77624371,119050.0,119040.0,0.67924]
[1752838643614,0.39479637,119050.0,119040.0,0.67924]
[1752838643811,0.77624371,119050.0,119040.0,0.67924]
[1752838644817,0.39479637,119050.0,119040.0,0.67924]
[1752838645216,0.77624371,119050.0,119040.0,0.67924]
[1752838645417,0.77624371,119050.0,119040.0,0.6794]
[1752838646518,0.77624371,119050.0,119040.0,0.67928]
[1752838646914,0.77624371,119050.0,119040.0,0.08391]
[1752838647213,0.77624371,119050.0,119040.0,0.00039]
[1752838647419,1.36496371,119050.0,119040.0,0.00039]
[1752838648021,1.36496371,119050.0,119040.0,0.04803]
[1752838652917,1.36496371,119050.0,119040.0,0.06334]
[1752838655823,1.36496371,119050.0,119040.0,0.06958]
[1752838657526,1.36496371,119050.0,119040.0,0.00039]
[1752838658637,1.38595371,119050.0,119040.0,0.00039]
[1752838660630,1.38595371,119050.0,119040.0,0.02522]
[1752838661032,1.38595371,119050.0,119040.0,0.04803]
[1752838662733,1.38595371,119050.0,119040.0,0.08531]
[1752838662935,1.38595371,119050.0,119040.0,0.08851]
[1752838665136,1.38595371,119050.0,119040.0,0.00039]
[1752838666137,1.44613863,119050.0,119040.0,0.00039]
[1752838671542,1.38595371,119050.0,119040.0,0.00039]
[1752838671742,1.44622033,119050.0,119040.0,0.00039]
[1752838672343,0.2505815,119040.0,119030.0,0.10511379]
[1752838672641,0.63841884,119040.0,119030.0,0.10511379]
[1752838674646,0.2569715,119040.0,119030.0,0.10511379]
[1752838674846,0.63841884,119040.0,119030.0,0.12779323]
[1752838675145,0.65941884,119040.0,119030.0,0.12779323]
[1752838675345,0.2779715,119040.0,119030.0,0.12779323]
[1752838675644,0.65941884,119040.0,119030.0,0.12779323]
[1752838676846,0.65941884,119040.0,119030.0,0.12879323]
[1752838680950,0.7068523,119040.0,119030.0,0.12879323]
[1752838681150,0.2779715,119040.0,119030.0,0.12879323]
[1752838681346,0.7068523,119040.0,119030.0,0.12879323]
[1752838681547,0.7278523,119040.0,119030.0,0.29672883]
[1752838681747,0.7278523,119040.0,119030.0,0.12879323]
[1752838682954,0.68020418,119040.0,119030.0,0.12879323]
[1752838683655,0.2989715,119040.0,119030.0,0.12879323]
[1752838685251,0.3409715,119040.0,119030.0,0.12879323]
[1752838686160,0.4081715,119040.0,119030.0,0.12879323]
[1752838686459,0.4081715,119040.0,119030.0,0.29672883]
[1752838686659,0.4081715,119040.0,119030.0,0.29711883]
[1752838687763,0.3539715,119040.0,119030.0,0.67835151]
[1752838688060,0.3539715,119040.0,119030.0,0.70859077]
[1752838688061,0.3388015,119040.0,119030.0,0.70859077]
[1752838688262,0.3388015,119040.0,119030.0,1.29555077]
[1752838688457,0.3222015,119040.0,119030.0,1.29555077]
[1752838688761,0.3191215,119040.0,119030.0,1.27287133]
[1752838689561,0.3191215,119040.0,119030.0,1.29554767]
[1752838689962,0.3191215,119040.0,119030.0,0.74637931]
[1752838690157,0.3539715,119040.0,119030.0,0.74637931]
[1752838690464,0.3603615,119040.0,119030.0,0.74637931]
[1752838691366,0.3603615,119040.0,119030.0,0.91431501]
[1752838692159,0.3848315,119040.0,119030.0,0.91431501]
[1752838694665,0.3539715,119040.0,119030.0,0.91431501]
[1752838694865,0.3388015,119040.0,119030.0,0.88407575]
[1752838695667,0.3388015,119040.0,119030.0,1.26530843]
[1752838696363,0.3388015,119040.0,119030.0,0.88407575]
[1752838697268,0.3388015,119040.0,119030.0,1.26530843]
[1752838698263,0.3191215,119040.0,119030.0,1.26530843]
[1752838698464,0.3191215,119040.0,119030.0,0.88407575]
[1752838699264,0.3191215,119040.0,119030.0,1.26530843]
[1752838699660,0.3191215,119040.0,119030.0,0.88407575]
[1752838699870,0.3388015,119040.0,119030.0,0.88407575]
[1752838700070,0.3539715,119040.0,119030.0,0.88407575]
[1752838702467,0.79022418,119040.0,119030.0,0.71614005]
[1752838703076,0.79022418,119040.0,119030.0,0.88407565]
[1752838703570,0.79022418,119040.0,119030.0,0.71614005]
[1752838704972,0.83786941,119040.0,119030.0,1.14501796]
[1752838706073,0.4089915,119040.0,119030.0,1.31295356]
[1752838706273,0.83786941,119040.0,119030.0,1.31295356]
[1752838707273,0.83786941,119040.0,119030.0,1.14501796]
[1752838707574,0.83786941,119040.0,119030.0,1.31295346]
[1752838708274,0.83786941,119040.0,119030.0,0.71614005]
[1752838708482,0.83786941,119040.0,119030.0,1.31295346]
[1752838709975,0.4089915,119040.0,119030.0,1.31295346]
[1752838710180,0.81333941,119040.0,119030.0,1.31295346]
[1752838710875,0.81333941,119040.0,119030.0,1.14501796]
[1752838711080,0.83786941,119040.0,119030.0,0.71614005]
[1752838711578,0.83786941,119040.0,119030.0,1.14501796]
[1752838712176,0.83786941,119040.0,119030.0,1.31295346]
[1752838712377,0.83786941,119040.0,119030.0,1.33395346]
[1752838712874,0.83786941,119040.0,119030.0,0.73714005]
[1752838713075,0.83786941,119040.0,119030.0,1.16601796]
[1752838713276,0.89666941,119040.0,119030.0,1.33395356]
[1752838714679,0.89666941,119040.0,119030.0,1.3112773]
[1752838714979,0.87213941,119040.0,119030.0,1.3112773]
[1752838715179,0.84164941,119040.0,119030.0,1.3112773]
[1752838715573,0.84164941,119040.0,119030.0,1.33395356]
[1752838716476,0.84164941,119040.0,119030.0,1.33390186]
[1752838717380,0.4127715,119040.0,119030.0,1.33390186]
[1752838717581,0.80987941,119040.0,119030.0,1.33390186]
[1752838719979,0.80987941,119040.0,119030.0,1.33395276]
[1752838723485,0.80987941,119040.0,119030.0,1.3112765]
[1752838723780,0.82495941,119040.0,119030.0,1.3112765]
[1752838724380,0.3960815,119040.0,119030.0,1.3112765]
[1752838724576,0.21,119040.0,119030.0,1.3112765]
[1752838724778,0.21,119040.0,119030.0,1.79306993]
[1752838725078,0.07,119050.0,119040.0,0.1998516]
[1752838725278,0.07,119050.0,119040.0,1.15052258]
[1752838725479,0.18650806,119060.0,119050.0,0.1679075]
[1752838725674,0.27721176,119060.0,119050.0,1.21465426]
[1752838725880,0.27721176,119060.0,119050.0,1.24489352]
[1752838726086,0.27721176,119060.0,119050.0,1.23631579]
[1752838726383,0.28350176,119060.0,119050.0,1.23631579]
[1752838726986,0.28350176,119060.0,119050.0,1.1657543]
[1752838727188,0.28350176,119060.0,119050.0,1.18839397]
[1752838728286,0.28350176,119060.0,119050.0,1.15854471]
[1752838728687,0.28450176,119060.0,119050.0,1.15854471]
[1752838728891,0.31806176,119060.0,119050.0,1.15854471]
[1752838729085,0.31806176,119060.0,119050.0,0.02302967]
[1752838729283,0.6990293,119060.0,119050.0,0.60958967]
[1752838729682,0.6990293,119060.0,119050.0,0.58695]
[1752838730389,0.31806176,119060.0,119050.0,0.58695]
[1752838730787,0.31806176,119060.0,119050.0,0.58994]
[1752838730989,0.6990293,119060.0,119050.0,0.00039]
[1752838731289,0.6990293,119060.0,119050.0,0.58695]
[1752838735490,0.31806176,119060.0,119050.0,0.7578475]
[1752838735885,0.31806176,119060.0,119050.0,0.7597175]
[1752838737597,0.31706176,119060.0,119050.0,0.7597175]
[1752838737797,0.31706176,119060.0,119050.0,0.7607175]
[1752838738091,0.31706176,119060.0,119050.0,0.7588475]
[1752838739295,0.6980293,119060.0,119050.0,0.7588475]
[1752838739998,0.31706176,119060.0,119050.0,0.7588475]
[1752838740199,0.31706176,119060.0,119050.0,0.7607175]
[1752838740599,0.2831697,119060.0,119050.0,1.15902097]
[1752838741097,0.3251597,119060.0,119050.0,1.15902097]
[1752838741495,0.2831837,119060.0,119050.0,1.15902097]
[1752838741694,0.2649037,119060.0,119050.0,1.1816428]
[1752838741890,0.09072,119060.0,119050.0,1.15902097]
[1752838742395,0.04199,119060.0,119050.0,1.15902097]
[1752838742597,0.04012,119060.0,119050.0,1.3496348]
[1752838742998,0.04012,119060.0,119050.0,1.5996348]
[1752838743201,0.04012,119060.0,119050.0,1.37979645]
[1752838743700,0.04012,119060.0,119050.0,1.35717462]
[1752838744902,0.04012,119060.0,119050.0,1.34962861]
[1752838745302,0.2080145,119060.0,119050.0,1.34962861]
[1752838745701,0.2548945,119060.0,119050.0,1.34962861]
[1752838746504,0.087,119060.0,119050.0,1.34962861]
[1752838747801,0.04012,119060.0,119050.0,1.34962861]
[1752838751003,0.087,119060.0,119050.0,1.34962861]
[1752838751405,0.04012,119060.0,119050.0,1.34962861]
[1752838751806,0.04012,119060.0,119050.0,0.96866107]
[1752838752106,0.04012,119060.0,119050.0,1.34962861]
[1752838753601,0.04012,119060.0,119050.0,1.18163661]
[1752838753902,0.04012,119060.0,119050.0,1.34962861]
[1752838754205,0.04012,119060.0,119050.0,1.37979026]
[1752838754606,0.04012,119060.0,119050.0,1.21179826]
[1752838754906,0.04012,119060.0,119050.0,1.18918262]
[1752838755707,0.04012,119060.0,119050.0,1.23454151]
[1752838755908,0.04012,119060.0,119050.0,1.20437986]
[1752838756105,0.11688,119080.0,119050.0,2.9920519]
[1752838756310,0.07,119080.0,119070.0,0.95245039]
[1752838756608,0.07,119080.0,119070.0,1.20476874]
[1752838757005,0.07,119080.0,119070.0,1.70088148]
[1752838757207,0.07,119080.0,119070.0,1.74613052]
[1752838757507,0.07,119080.0,119070.0,1.36516298]
[1752838758105,0.07,119080.0,119070.0,1.43119644]
[1752838758311,0.07,119080.0,119070.0,1.3859474]
[1752838758511,0.07,119080.0,119070.0,1.31991394]
[1752838760712,0.071,119080.0,119070.0,1.32041394]
[1752838760907,0.0705,119080.0,119070.0,1.32041394]
[1752838761505,0.0705,119080.0,119070.0,1.39575545]
[1752838761702,0.0705,119080.0,119070.0,1.22779545]
[1752838763414,0.0705,119080.0,119070.0,1.29521844]
[1752838764414,0.0705,119080.0,119070.0,0.9142509]
[1752838764615,0.0705,119080.0,119070.0,1.29521844]
[1752838764814,0.0705,119080.0,119070.0,1.27252928]
[1752838765116,0.12023,119080.0,119070.0,1.24231681]
[1752838766214,0.0705,119080.0,119070.0,1.24231681]
[1752838768118,0.0705,119080.0,119070.0,1.27240928]
[1752838769618,0.2383663,119080.0,119070.0,0.68725928]
[1752838769818,0.12023,119080.0,119070.0,1.2506994]
[1752838770020,0.2950663,119080.0,119070.0,1.22060693]
[1752838770219,0.3114063,119080.0,119070.0,1.22060693]
[1752838770520,0.3274363,119080.0,119070.0,1.22060693]
[1752838771013,0.3308763,119080.0,119070.0,0.8616659]
[1752838771719,0.3308763,119080.0,119070.0,1.24263344]
[1752838772321,0.16301,119080.0,119070.0,1.22006693]
[1752838772820,0.1272,119080.0,119070.0,1.22006693]
[1752838773419,0.1272,119080.0,119070.0,1.24264291]
[1752838773621,0.1272,119080.0,119070.0,1.22006693]
[1752838773622,0.14767315,119080.0,119070.0,1.22006693]
[1752838773816,0.09097315,119080.0,119070.0,1.22006693]
[1752838777725,0.0705,119080.0,119070.0,1.22006693]
[1752838783126,0.12023,119080.0,119070.0,1.22006693]
[1752838783730,0.14072332,119080.0,119070.0,1.22006693]
[1752838785030,0.09099332,119080.0,119070.0,1.22006693]
[1752838786031,0.09101516,119080.0,119070.0,1.22006693]
[1752838788037,0.09101516,119080.0,119070.0,1.60103447]
[1752838790437,0.09001516,119080.0,119070.0,1.60103447]
[1752838791142,0.09001516,119080.0,119070.0,1.21995522]
[1752838791537,0.09001516,119080.0,119070.0,1.60092276]
[1752838792136,0.06717,119090.0,119080.0,0.1678663]
[1752838792441,0.04658,119100.0,119090.0,0.1678522]
[1752838792638,0.04658,119100.0,119090.0,1.15169494]
[1752838793242,0.04658,119100.0,119090.0,0.7707274]
[1752838793439,0.07373,119100.0,119090.0,0.7707274]
[1752838793646,0.0888,119100.0,119090.0,1.16016311]
[1752838793937,0.2566381,119100.0,119090.0,1.16016311]
[1752838795144,0.2576381,119100.0,119090.0,0.19351557]
[1752838795445,0.63860564,119100.0,119090.0,0.7706874]
[1752838796846,0.63860564,119100.0,119090.0,0.77896953]
[1752838797048,0.63860564,119100.0,119090.0,0.7706874]
[1752838797248,0.2576381,119100.0,119090.0,0.7706874]
[1752838798447,0.3164081,119100.0,119090.0,0.7706874]
[1752838799246,0.3373981,119100.0,119090.0,0.7706874]
[1752838799952,0.71836564,119100.0,119090.0,0.0171952]
[1752838800149,0.3373981,119100.0,119090.0,0.6028352]
[1752838800448,0.71836564,119100.0,119090.0,0.6028352]
[1752838800648,0.71836564,119100.0,119090.0,0.6238252]
[1752838801551,0.71836564,119100.0,119090.0,0.7916774]
[1752838803455,0.71836564,119100.0,119090.0,0.86249423]
[1752838804552,0.71836564,119100.0,119090.0,0.89267592]
[1752838804745,0.71836564,119100.0,119090.0,0.84740583]
[1752838804948,0.3373981,119100.0,119090.0,0.83986105]
[1752838805146,0.71836564,119100.0,119090.0,0.83986105]
[1752838807457,0.73935564,119100.0,119090.0,0.83986105]
[1752838808055,0.3583881,119100.0,119090.0,0.83986105]
[1752838809358,0.3743881,119100.0,119090.0,0.83986105]
[1752838810153,0.3743881,119100.0,119090.0,0.8398608]
[1752838811459,0.3743881,119100.0,119090.0,0.81722414]
[1752838811661,0.3743881,119100.0,119090.0,0.83986087]
[1752838812160,0.3743881,119100.0,119090.0,0.84025087]
[1752838812957,0.3743881,119100.0,119090.0,0.84118087]
[1752838813461,0.3743881,119100.0,119090.0,0.67332867]
[1752838813961,0.3743881,119100.0,119090.0,0.65069194]
[1752838814359,0.3743881,119100.0,119090.0,0.67332752]
[1752838814661,0.3743881,119100.0,119090.0,0.84117942]
[1752838814862,0.75535564,119100.0,119090.0,0.84872553]
[1752838815056,0.75535564,119100.0,119090.0,0.68087363]
[1752838815464,0.75535564,119100.0,119090.0,0.70350871]
[1752838815763,0.75535564,119100.0,119090.0,0.87136071]
[1752838816664,0.3743881,119100.0,119090.0,0.87136071]
[1752838816859,0.75535564,119100.0,119090.0,0.70350871]
[1752838817056,0.75535564,119100.0,119090.0,0.67332702]
[1752838819866,0.3743881,119100.0,119090.0,0.84117902]
[1752838820166,0.75535564,119100.0,119090.0,0.67332702]
[1752838822674,0.3743881,119100.0,119090.0,0.67332702]
[1752838822971,0.75535564,119100.0,119090.0,0.67332702]
[1752838824171,0.3743881,119100.0,119090.0,0.67332702]
[1752838824372,0.73436564,119100.0,119090.0,0.67332702]
[1752838825167,0.73436564,119100.0,119090.0,0.65613182]
[1752838825367,0.73436564,119100.0,119090.0,0.6732745]
[1752838826475,0.73436564,119100.0,119090.0,0.67259746]
[1752838828680,0.73436564,119100.0,119090.0,0.67271236]
[1752838829277,0.73436564,119100.0,119090.0,0.70289405]
[1752838829878,0.73436564,119100.0,119090.0,0.67271236]
[1752838830377,0.73436564,119100.0,119090.0,0.68025871]
[1752838831780,0.73436564,119100.0,119090.0,0.68003696]
[1752838833584,0.73436564,119100.0,119090.0,0.70269813]
[1752838834083,0.73436564,119100.0,119090.0,0.68084696]
[1752838837489,0.73436564,119100.0,119090.0,0.68098782]
[1752838837895,0.3533981,119100.0,119090.0,0.68098782]
[1752838838091,0.73436564,119100.0,119090.0,0.68098782]
[1752838839397,0.75535564,119100.0,119090.0,0.68098782]
[1752838840098,0.75535564,119100.0,119090.0,0.68017782]
[1752838840599,0.3743881,119100.0,119090.0,0.68017782]
[1752838840799,0.75535564,119100.0,119090.0,0.68017782]
[1752838841199,0.75535564,119100.0,119090.0,0.68098782]
[1752838843299,0.75535564,119100.0,119090.0,0.68082297]
[1752838843500,0.3743881,119100.0,119090.0,0.68082297]
[1752838843801,0.75535564,119100.0,119090.0,0.68082297]
[1752838844397,0.3743881,119100.0,119090.0,0.68082297]
[1752838844601,0.75535564,119100.0,119090.0,0.68082297]
[1752838845102,0.3743881,119100.0,119090.0,0.84867487]
[1752838845304,0.75535564,119100.0,119090.0,0.68082297]
[1752838846400,0.75535564,119100.0,119090.0,0.89394496]
[1752838846906,0.80281577,119100.0,119090.0,1.32237263]
[1752838847806,0.3743881,119100.0,119090.0,1.32237263]
[1752838848306,0.3743881,119100.0,119090.0,0.89394496]
[1752838848506,0.3743881,119100.0,119090.0,1.32237263]
[1752838848706,0.80281577,119100.0,119090.0,1.32237263]
[1752838849607,0.3743881,119100.0,119090.0,1.32237263]
[1752838849807,0.80281577,119100.0,119090.0,1.32237263]
[1752838850805,0.3743881,119100.0,119090.0,1.32237263]
[1752838851006,0.80281577,119100.0,119090.0,1.32237263]
[1752838851404,0.3743881,119100.0,119090.0,1.32237263]
[1752838851707,0.80281577,119100.0,119090.0,1.32266263]
[1752838852109,0.3743881,119100.0,119090.0,1.32266263]
[1752838852308,0.80281577,119100.0,119090.0,1.32266263]
[1752838853206,0.86998577,119100.0,119090.0,1.32266263]
[1752838853508,0.4415581,119100.0,119090.0,1.32266263]
[1752838853808,0.86998577,119100.0,119090.0,1.32266263]
[1752838854003,0.86998577,119100.0,119090.0,1.32237263]
[1752838854409,0.86998577,119100.0,119090.0,1.29219094]
[1752838854606,0.86998577,119100.0,119090.0,1.32241578]
[1752838854807,0.86998577,119100.0,119090.0,1.29981353]
[1752838857010,0.86998577,119100.0,119090.0,0.87138586]
[1752838857210,0.86998577,119100.0,119090.0,1.29981353]
[1752838858107,0.86998577,119100.0,119090.0,0.87138586]
[1752838858314,0.86998577,119100.0,119090.0,1.29981353]
[1752838858614,0.4415581,119100.0,119090.0,1.29981353]
[1752838858813,0.86998577,119100.0,119090.0,1.29981353]
[1752838859014,0.4415581,119100.0,119090.0,1.29981353]
[1752838859214,0.86998577,119100.0,119090.0,1.29981353]
[1752838859512,0.4415581,119100.0,119090.0,1.29981353]
[1752838859714,0.86998577,119100.0,119090.0,1.29981353]
[1752838860213,0.86998577,119100.0,119090.0,0.87138586]
[1752838860408,0.4415581,119100.0,119090.0,1.30005353]
[1752838860609,0.4415581,119100.0,119090.0,1.27738524]
[1752838860805,0.4065281,119100.0,119090.0,1.30005046]
[1752838861411,0.4065281,119100.0,119090.0,0.87162279]
[1752838861917,0.4417581,119100.0,119090.0,1.30005046]
[1752838862917,0.87018577,119100.0,119090.0,1.30005046]
[1752838863720,0.87018577,119100.0,119090.0,1.26958607]
[1752838864111,0.87018577,119100.0,119090.0,0.8411584]
[1752838864311,0.46027389,119100.0,119090.0,0.65447892]